bitfinex-derivatives/quotes_BNBF0:USTF0_20251225
["timestamp","ask_amount","ask_price","bid_price","bid_amount"]
[1766672770361,1.19594512,836.86,836.01,1.19317604]
[1766672770560,1.19594512,836.85,836.01,1.19317604]
[1766672770763,9.14956881,836.87,836.01,1.19317604]
[1766672770964,1.19594512,836.86,836.01,1.19317604]
[1766672771166,1.19594512,836.85,836.01,1.19317604]
[1766672771363,9.14956881,836.87,836.01,1.19317604]
[1766672771566,1.19594512,836.86,836.01,1.19317604]
[1766672771766,1.19594512,836.85,836.01,1.19317604]
[1766672771964,9.14956881,836.87,836.01,1.19317604]
[1766672772163,1.19594512,836.86,836.01,1.19317604]
[1766672772363,1.19594512,836.85,836.01,1.19317604]
[1766672772667,0.89666517,836.97,836.01,1.19317604]
[1766672772967,1.19594544,836.96,836.01,1.19317604]
[1766672773167,1.19594544,836.95,836.01,1.19317604]
[1766672773463,1.19594544,836.94,836.01,1.19317604]
[1766672773667,1.19594544,836.93,836.01,1.19317604]
[1766672773869,1.19594544,836.92,836.01,1.19317604]
[1766672774168,1.19594544,836.91,836.01,1.19317604]
[1766672774364,1.19594544,836.9,836.01,1.19317604]
[1766672774668,1.19594544,836.89,836.01,1.19317604]
[1766672774869,1.19594544,836.88,836.01,1.19317604]
[1766672775069,1.19594544,836.87,836.01,1.19317604]
[1766672775270,1.19594544,836.86,836.01,1.19317604]
[1766672775468,1.19594544,836.85,836.02,1.19317604]
[1766672775671,1.19594544,836.84,836.02,1.19317604]
[1766672775968,0.89666517,836.97,836.02,14.38725516]
[1766672776169,1.19594544,836.96,836.02,14.38725516]
[1766672776369,1.19594544,836.95,836.02,14.38725516]
[1766672776673,1.19594544,836.94,836.02,14.38725516]
[1766672776871,1.19594544,836.93,836.02,14.38725516]
[1766672777071,1.19594544,836.92,836.02,14.38725516]
[1766672777270,1.19594544,836.91,836.02,14.38725516]
[1766672777573,1.19594544,836.9,836.02,14.38725516]
[1766672777773,1.19594544,836.89,836.02,14.38725516]
[1766672777974,1.19594544,836.88,836.02,14.38725516]
[1766672778174,1.19594544,836.87,836.02,14.38725516]
[1766672778374,1.19594544,836.86,836.02,14.38725516]
[1766672778572,1.19594544,836.85,836.02,14.38725516]
[1766672778774,1.19594544,836.84,836.02,14.38725516]
[1766672778976,0.89666517,836.96,836.02,14.38725516]
[1766672778977,0.89666517,836.96,836.02,1.19317604]
[1766672779176,1.19594554,836.95,836.02,1.19317604]
[1766672779376,1.19594554,836.94,836.02,1.19317604]
[1766672779577,1.19594554,836.93,836.02,1.19317604]
[1766672779771,1.19594554,836.92,836.02,1.19317604]
[1766672779974,0.89666517,836.96,836.02,1.19317604]
[1766672779975,1.19594554,836.91,836.02,1.19317604]
[1766672780276,1.19594554,836.9,836.02,1.19317604]
[1766672780475,1.19594554,836.89,836.02,1.19317604]
[1766672780775,1.19594554,836.88,836.02,1.19317604]
[1766672781077,1.19594554,836.87,836.02,1.19317604]
[1766672781271,1.19594554,836.86,836.02,1.19317604]
[1766672781471,1.19594554,836.85,836.03,1.19317604]
[1766672781671,1.19594554,836.84,836.03,1.19317604]
[1766672781972,1.19594554,836.83,836.03,1.19317604]
[1766672782279,1.19594608,836.82,835.93,1.19317604]
[1766672782478,1.19594608,836.82,835.83,56.28778559]
[1766672782479,1.19594608,836.81,835.95,1.19317604]
[1766672782777,1.19594608,836.81,835.98,1.19317604]
[1766672782972,1.19594608,836.81,835.99,1.19317604]
[1766672785673,1.19594608,836.8,835.99,1.19317604]
[1766672785976,1.19594608,836.79,835.99,1.19317604]
[1766672786274,0.89666517,836.93,835.99,1.19317604]
[1766672786474,10.2020514,836.92,835.99,1.19317604]
[1766672786674,1.19600574,836.91,835.99,1.19317604]
[1766672786873,1.19600574,836.9,835.99,1.19317604]
[1766672787077,1.19600574,836.89,835.99,1.19317604]
[1766672787273,1.19600574,836.88,835.99,1.19317604]
[1766672787478,1.19600574,836.87,835.99,1.19317604]
[1766672787674,1.19600574,836.86,835.99,1.19317604]
[1766672787874,1.19600574,836.85,835.99,1.19317604]
[1766672788076,1.19600574,836.84,835.99,1.19317604]
[1766672788275,1.19600574,836.83,835.99,1.19317604]
[1766672788474,1.19600574,836.82,835.99,1.19317604]
[1766672788778,1.19600574,836.81,835.99,1.19317604]
[1766672788976,1.19600574,836.8,835.99,1.19317604]
[1766672789175,1.19600574,836.79,835.99,1.19317604]
[1766672789375,9.00604566,836.92,835.99,1.19317604]
[1766672789578,1.19600574,836.91,835.99,1.19317604]
[1766672789872,1.19600574,836.9,835.99,1.19317604]
[1766672790080,1.19600574,836.89,835.99,1.19317604]
[1766672790276,1.19600574,836.88,835.99,1.19317604]
[1766672790476,1.19600574,836.87,835.99,1.19317604]
[1766672790677,1.19600574,836.86,835.99,1.19317604]
[1766672790977,1.19600574,836.85,835.99,1.19317604]
[1766672791178,1.19600574,836.84,835.99,1.19317604]
[1766672791378,1.19600574,836.83,835.99,1.19317604]
[1766672791579,1.19600574,836.82,835.99,1.19317604]
[1766672791780,1.19600574,836.81,835.99,1.19317604]
[1766672791979,1.19600574,836.8,835.99,1.19317604]
[1766672792180,1.19600574,836.79,835.99,1.19317604]
[1766672792376,1.19600574,836.78,835.99,1.19317604]
[1766672792580,0.89666517,836.92,835.99,1.19317604]
[1766672792781,10.00201198,836.91,835.99,1.19317604]
[1766672792980,1.19600595,836.9,835.99,1.19317604]
[1766672793178,1.19600595,836.89,835.99,1.19317604]
[1766672793377,1.19600595,836.88,835.99,1.19317604]
[1766672793580,1.19600595,836.87,835.99,1.19317604]
[1766672793878,1.19600595,836.86,835.99,1.19317604]
[1766672794077,1.19600595,836.85,835.99,1.19317604]
[1766672794277,1.19600595,836.84,835.99,1.19317604]
[1766672794477,1.19600595,836.83,835.99,1.19317604]
[1766672794679,1.19600595,836.82,835.99,1.19317604]
[1766672794878,1.19600595,836.81,835.99,1.19317604]
[1766672795081,1.19600595,836.8,835.99,1.19317604]
[1766672795279,1.19600595,836.79,835.99,1.19317604]
[1766672795482,1.19600595,836.78,836.0,1.19317604]
[1766672795683,8.80600603,836.91,836.0,1.19317604]
[1766672795883,1.19600595,836.9,836.0,1.19317604]
[1766672796183,1.19600595,836.89,836.0,1.19317604]
[1766672796378,1.19600595,836.88,836.0,1.19317604]
[1766672796579,1.19600595,836.87,836.0,1.19317604]
[1766672796783,1.19600595,836.86,836.0,1.19317604]
[1766672796983,1.19600595,836.85,836.0,1.19317604]
[1766672797282,1.19600595,836.84,836.0,1.19317604]
[1766672797480,1.19600595,836.83,836.0,1.19317604]
[1766672797684,1.19600595,836.82,836.0,1.19317604]
[1766672797885,1.19600595,836.81,836.0,1.19317604]
[1766672798086,1.19600595,836.8,835.98,1.19317604]
[1766672798286,1.19600595,836.79,835.98,1.19317604]
[1766672798585,1.19600595,836.78,835.98,1.19317604]
[1766672798786,1.19600595,836.77,835.98,1.19317604]
[1766672799082,1.19600595,836.76,835.98,1.19317604]
[1766672799284,1.19600595,836.75,835.98,1.19317604]
[1766672799485,0.89666517,836.89,835.98,1.19317604]
[1766672799684,1.19603389,836.88,835.98,1.19317604]
[1766672799980,1.19603389,836.87,835.98,1.19317604]
[1766672800187,1.19603389,836.86,835.98,1.19317604]
[1766672800386,1.19603389,836.85,835.99,1.19317604]
[1766672800581,1.19603389,836.84,835.99,1.19317604]
[1766672800782,1.19603389,836.83,835.99,1.19317604]
[1766672800986,1.19603389,836.82,835.99,1.19317604]
[1766672801186,1.19603389,836.81,835.99,1.19317604]
[1766672801486,1.19603389,836.8,835.99,1.19317604]
[1766672801685,1.19603389,836.79,835.99,1.19317604]
[1766672801886,1.19603389,836.78,835.99,1.19317604]
[1766672802085,1.19603389,836.77,835.99,1.19317604]
[1766672803889,1.19603389,836.77,835.96,1.19317604]
[1766672804490,1.19603389,836.77,835.92,1.19317604]
[1766672804691,0.89615669,836.74,835.84,1.19317604]
[1766672804885,1.19603389,836.73,835.84,1.19317604]
[1766672805088,1.19603389,836.72,835.84,1.19317604]
[1766672805290,1.19603389,836.71,835.84,1.19317604]
[1766672805588,1.19603389,836.7,835.82,1.19317604]
[1766672805890,1.19603389,836.69,835.83,1.19317604]
[1766672806091,1.19603389,836.68,835.83,1.19317604]
[1766672806292,1.19603389,836.67,835.83,1.19317604]
[1766672806490,1.19603389,836.66,835.82,1.19317604]
[1766672806688,1.19603389,836.65,835.8,1.19317604]
[1766672806888,1.19603389,836.64,835.76,1.19317604]
[1766672807187,1.19603389,836.63,835.76,1.19317604]
[1766672807391,1.19603389,836.62,835.74,1.19317604]
[1766672807691,1.19603389,836.61,835.74,1.19317604]
[1766672807891,1.19603389,836.6,835.74,1.19317604]
[1766672808089,1.19603389,836.59,835.68,1.19317604]
[1766672808392,1.19603389,836.58,835.62,1.19317604]
[1766672808588,2.09219058,836.58,835.56,1.19317604]
[1766672808893,2.09219058,836.57,835.56,1.19317604]
[1766672809088,2.09219058,836.57,835.41,1.79182466]
[1766672809089,1.19603389,836.56,835.59,1.19317604]
[1766672809393,1.19603389,836.55,835.57,1.19317604]
[1766672809692,1.19603389,836.54,835.57,1.19317604]
[1766672809891,9.15490208,836.59,835.57,1.19317604]
[1766672810088,1.19652648,836.58,835.57,1.19317604]
[1766672810294,1.19652648,836.57,835.56,1.19317604]
[1766672810489,1.19652648,836.56,835.56,1.19317604]
[1766672810692,1.19652648,836.55,835.56,1.19317604]
[1766672810892,1.19652648,836.54,835.56,1.19317604]
[1766672811194,9.15490208,836.59,835.61,1.19317604]
[1766672811391,1.19643504,836.58,835.6,1.19317604]
[1766672811590,9.15490208,836.59,835.6,1.19317604]
[1766672811792,1.19643504,836.58,835.6,1.19317604]
[1766672812097,9.15490208,836.59,835.6,1.19317604]
[1766672812296,0.89615669,836.73,835.62,1.19317604]
[1766672812597,1.19641503,836.72,835.61,1.19317604]
[1766672812898,1.19641503,836.71,835.61,1.19317604]
[1766672813092,1.19641503,836.7,835.61,1.19317604]
[1766672813297,1.19641503,836.69,835.61,1.19317604]
[1766672813497,1.19641503,836.68,835.61,1.19317604]
[1766672813697,1.19641503,836.67,835.61,1.19317604]
[1766672813900,1.19641503,836.66,835.61,1.19317604]
[1766672814099,1.19641503,836.65,835.64,1.19317604]
[1766672814401,1.19641503,836.64,835.64,1.19317604]
[1766672814596,0.89615669,836.78,835.64,1.19317604]
[1766672814801,1.19636437,836.77,835.64,1.19317604]
[1766672814997,1.19636437,836.76,835.64,1.19317604]
[1766672815197,1.19636437,836.75,835.64,1.19317604]
[1766672815400,1.19636437,836.74,835.63,1.19317604]
[1766672815601,1.19636437,836.73,835.63,1.19317604]
[1766672815796,1.19636437,836.72,835.63,1.19317604]
[1766672816000,1.19636437,836.71,835.63,1.19317604]
[1766672816197,1.19636437,836.7,835.63,1.19317604]
[1766672816502,1.19636437,836.69,835.63,1.19317604]
[1766672816798,1.19636437,836.68,835.63,1.19317604]
[1766672816997,1.19636437,836.67,835.63,1.19317604]
[1766672817301,1.19636437,836.66,835.63,1.19317604]
[1766672817501,1.19636437,836.65,835.63,1.19317604]
[1766672817702,8.87463742,836.74,835.63,1.19317604]
[1766672817902,1.19636405,836.73,835.63,1.19317604]
[1766672818097,1.19636405,836.72,835.63,1.19317604]
[1766672818296,1.19636405,836.71,835.63,1.19317604]
[1766672818496,8.87463742,836.74,835.65,1.19317604]
[1766672818702,1.19633546,836.73,835.65,1.19317604]
[1766672818901,1.19633546,836.72,835.65,1.19317604]
[1766672819096,1.19633546,836.71,835.65,1.19317604]
[1766672819300,1.19633546,836.7,835.65,1.19317604]
[1766672819500,1.19633546,836.69,835.65,1.19317604]
[1766672819700,8.82605763,836.68,835.7,1.19317604]
[1766672819903,8.82605763,836.68,835.72,1.19317604]
[1766672820604,8.82605763,836.68,835.74,1.19317604]
[1766672820806,8.82605763,836.68,835.75,1.19317604]
[1766672821006,8.82605763,836.68,835.78,1.19317604]
[1766672821206,8.82605763,836.68,835.8,1.19317604]
[1766672823509,8.82605763,836.68,835.83,1.19317604]
[1766672823805,1.10411343,836.98,835.83,1.19317604]
[1766672824008,1.19607675,836.97,835.83,1.19317604]
[1766672824207,1.19607675,836.96,835.83,1.19317604]
[1766672824410,1.19607675,836.96,835.68,1.79182466]
[1766672824411,1.19607675,836.95,835.88,1.19317604]
[1766672824611,1.19607675,836.94,835.88,1.19317604]
[1766672824910,1.19607675,836.93,835.88,1.19317604]
[1766672825110,1.19607675,836.92,835.88,1.19317604]
[1766672825406,1.19607675,836.91,835.88,1.19317604]
[1766672825607,1.19607675,836.9,835.88,1.19317604]
[1766672825807,1.19607675,836.89,835.88,1.19317604]
[1766672826012,0.20795674,836.98,835.89,1.19317604]
[1766672826308,1.19600216,836.97,835.9,1.19317604]
[1766672826512,0.20795674,836.98,835.98,14.23313764]
[1766672826812,0.20795674,836.98,835.98,13.0399616]
[1766672831319,0.20795674,836.98,835.96,1.19317604]
[1766672832419,0.20795674,836.98,835.95,1.19317604]
[1766672833520,0.20795674,836.98,835.96,1.19317604]
[1766672834422,0.20795674,836.98,835.95,1.19317604]
[1766672835222,0.20795674,836.98,835.96,1.19317604]
[1766672835423,0.20795674,836.98,835.95,1.19317604]
[1766672838518,0.20795674,836.98,835.94,1.19317604]
[1766672841124,0.20795674,836.98,835.9,1.19317604]
[1766672841323,1.19598623,836.97,835.86,1.19317604]
[1766672841622,1.19598623,836.96,835.86,1.19317604]
[1766672841822,1.19598623,836.95,835.86,1.19317604]
[1766672842023,1.19598623,836.94,835.86,1.19317604]
[1766672842327,9.12552982,836.97,835.86,1.19317604]
[1766672842526,1.19598527,836.96,835.86,1.19317604]
[1766672842724,1.19598527,836.95,835.86,1.19317604]
[1766672842929,1.19598527,836.94,835.86,1.19317604]
[1766672843128,9.12552982,836.97,835.86,1.19317604]
[1766672843325,1.19598559,836.96,835.86,1.19317604]
[1766672843524,1.19598559,836.95,835.86,1.19317604]
[1766672843725,1.19598559,836.94,835.86,1.19317604]
[1766672843927,9.12552982,836.97,835.86,1.19317604]
[1766672844123,1.1959857,836.96,835.86,1.19317604]
[1766672844324,1.1959857,836.95,835.86,1.19317604]
[1766672844525,1.1959857,836.94,835.85,1.19317604]
[1766672844724,0.20795674,836.98,835.85,1.19317604]
[1766672844924,1.19598559,836.97,835.85,1.19317604]
[1766672845128,1.19598559,836.96,835.85,1.19317604]
[1766672845325,1.19598559,836.95,835.85,1.19317604]
[1766672845528,1.19598559,836.94,835.85,1.19317604]
[1766672845728,9.04150368,836.97,835.85,1.19317604]
[1766672845928,1.1959858,836.96,835.85,1.19317604]
[1766672846128,1.1959858,836.95,835.85,1.19317604]
[1766672846328,1.1959858,836.94,835.81,1.19317604]
[1766672846530,9.04150368,836.97,835.81,1.19317604]
[1766672846531,1.1959858,836.93,835.81,1.19317604]
[1766672846728,1.1959858,836.92,835.81,1.19317604]
[1766672847024,1.1959858,836.91,835.81,1.19317604]
[1766672847229,1.1959858,836.9,835.81,1.19317604]
[1766672847430,9.04150368,836.97,835.81,1.19317604]
[1766672847626,1.1960487,836.96,835.81,1.19317604]
[1766672847930,1.1960487,836.95,835.81,1.19317604]
[1766672848126,1.1960487,836.94,835.81,1.19317604]
[1766672848330,1.1960487,836.93,835.81,1.19317604]
[1766672848527,1.1960487,836.92,835.81,1.19317604]
[1766672848728,1.1960487,836.91,835.81,1.19317604]
[1766672848932,1.1960487,836.9,835.81,1.19317604]
[1766672849228,8.90905676,836.93,835.81,1.19317604]
[1766672849431,1.19604817,836.92,835.81,1.19317604]
[1766672849731,1.19604817,836.91,835.81,1.19317604]
[1766672850033,1.19604817,836.9,835.81,1.19317604]
[1766672850234,8.90905676,836.93,835.81,1.19317604]
[1766672850429,1.19604817,836.92,835.81,1.19317604]
[1766672850728,1.19604817,836.91,835.81,1.19317604]
[1766672850932,1.19604817,836.9,835.81,1.19317604]
[1766672851132,8.90905676,836.93,835.81,1.19317604]
[1766672851327,1.19604817,836.92,835.81,1.19317604]
[1766672851530,1.19604817,836.91,835.81,1.19317604]
[1766672851730,1.19604817,836.9,835.81,1.19317604]
[1766672852029,0.20795674,836.98,835.81,1.19317604]
[1766672852232,1.19604838,836.97,835.82,1.19317604]
[1766672852431,1.19604838,836.96,835.82,1.19317604]
[1766672852629,1.19604838,836.95,835.82,1.19317604]
[1766672852830,1.19604838,836.94,835.82,1.19317604]
[1766672853028,1.19604838,836.93,835.82,1.19317604]
[1766672853228,1.19604838,836.92,835.82,1.19317604]
[1766672853428,1.19604838,836.91,835.82,1.19317604]
[1766672853630,1.19604838,836.9,835.8,1.19317604]
[1766672853833,1.19604838,836.89,835.78,1.19317604]
[1766672854029,1.19604838,836.88,835.78,1.19317604]
[1766672854233,1.19604838,836.87,835.78,1.19317604]
[1766672854534,1.19604838,836.86,835.79,1.19317604]
[1766672854730,1.19604838,836.85,835.79,1.19317604]
[1766672854934,1.19604838,836.84,835.79,1.19317604]
[1766672855231,1.19610696,836.83,835.78,1.19317604]
[1766672855437,1.19610696,836.82,835.79,1.19317604]
[1766672855738,1.19610696,836.82,835.77,1.19317604]
[1766672856235,1.19610696,836.82,834.93,0.01517383]
[1766672856236,1.19610696,836.82,835.72,1.19317604]
[1766672857437,1.19610696,836.82,835.73,1.19317604]
[1766672857835,0.89615669,836.81,835.68,1.19317604]
[1766672858032,1.19610696,836.8,835.68,1.19317604]
[1766672858433,1.19610696,836.8,835.64,1.19317604]
[1766672858434,0.89615669,836.77,835.64,1.19317604]
[1766672858634,1.19610696,836.76,835.64,1.19317604]
[1766672859537,0.89615669,836.75,835.63,1.19317604]
[1766672859734,1.19610696,836.74,835.63,1.19317604]
[1766672860237,1.19610696,836.74,835.62,1.19317604]
[1766672860437,1.19610696,836.73,835.63,1.19317604]
[1766672860637,1.19610696,836.72,835.63,1.19317604]
[1766672860936,1.19610696,836.71,835.63,1.19317604]
[1766672861137,1.19610696,836.7,835.63,1.19317604]
[1766672861337,1.19610696,836.69,835.62,1.19317604]
[1766672861536,1.19610696,836.68,835.63,1.19317604]
[1766672861731,1.19610696,836.67,835.65,1.19317604]
[1766672861933,1.19610696,836.66,835.65,1.19317604]
[1766672862137,1.19610696,836.65,835.65,1.19317604]
[1766672862337,1.19610696,836.64,835.65,1.19317604]
[1766672862538,0.89615669,836.77,835.65,1.19317604]
[1766672862737,1.19635262,836.76,835.65,14.43044775]
[1766672863033,1.19635262,836.75,835.65,14.43044775]
[1766672863233,1.19635262,836.74,835.65,13.23727171]
[1766672863433,1.19635262,836.73,835.65,14.43044775]
[1766672863633,1.19635262,836.72,835.65,14.43044775]
[1766672863835,1.19635262,836.71,835.65,14.43044775]
[1766672864035,1.19635262,836.7,835.65,14.43044775]
[1766672864237,1.19635262,836.69,835.65,13.23727171]
[1766672864535,1.19635262,836.68,835.65,14.43044775]
[1766672864734,1.19635262,836.67,835.68,1.19317604]
[1766672865035,0.89615669,836.8,835.68,1.19317604]
[1766672865338,1.19631122,836.79,835.67,1.19317604]
[1766672865538,1.19631122,836.78,835.67,1.19317604]
[1766672865739,1.19631122,836.77,835.67,1.19317604]
[1766672866033,1.19631122,836.76,835.67,1.19317604]
[1766672866235,1.19631122,836.75,835.67,1.19317604]
[1766672866537,1.19631122,836.74,835.67,1.19317604]
[1766672866735,0.89615669,836.81,835.67,1.19317604]
[1766672866933,1.19616973,836.8,835.78,1.19317604]
[1766672867135,0.89615669,836.93,835.8,1.19317604]
[1766672867336,1.19612952,836.92,835.8,1.19317604]
[1766672867540,1.19612952,836.91,835.84,14.32264752]
[1766672867733,1.19612952,836.9,835.84,13.12947148]
[1766672867933,1.19612952,836.89,835.84,13.12947148]
[1766672868140,1.19612952,836.88,835.84,13.12947148]
[1766672868339,1.19612952,836.87,835.84,13.12947148]
[1766672868636,1.19612952,836.86,835.84,13.12947148]
[1766672868835,1.19612952,836.85,835.84,13.12947148]
[1766672869042,0.89615669,836.96,835.84,13.12947148]
[1766672869043,1.19612952,836.84,835.84,13.12947148]
[1766672869236,1.19612952,836.83,835.84,13.12947148]
[1766672869537,1.19612952,836.82,835.84,13.12947148]
[1766672869742,0.89615669,836.96,835.84,13.12947148]
[1766672869940,1.19609682,836.95,835.84,13.12947148]
[1766672870138,1.19609682,836.94,835.84,13.12947148]
[1766672870337,1.19609682,836.93,835.84,13.12947148]
[1766672870541,1.19609682,836.92,835.84,13.12947148]
[1766672870743,1.19609682,836.91,835.84,13.12947148]
[1766672870939,1.19609682,836.9,835.82,1.19317604]
[1766672871138,1.19609682,836.89,835.82,1.19317604]
[1766672871341,1.19609682,836.88,835.82,1.19317604]
[1766672871541,1.19609682,836.87,835.82,1.19317604]
[1766672871742,1.19609682,836.86,835.82,1.19317604]
[1766672871940,1.19609682,836.85,835.82,1.19317604]
[1766672872140,1.19609682,836.84,835.82,1.19317604]
[1766672872443,1.19609682,836.83,835.82,1.19317604]
[1766672872738,1.19609682,836.82,835.82,1.19317604]
[1766672872943,1.10411343,836.98,835.85,1.19317604]
[1766672873146,1.19605672,836.97,835.85,1.19317604]
[1766672873344,1.19605672,836.96,835.85,1.19317604]
[1766672873644,1.19605672,836.95,835.85,1.19317604]
[1766672873840,1.19605672,836.94,835.85,1.19317604]
[1766672874045,1.19605672,836.93,835.85,1.19317604]
[1766672874243,1.19605672,836.92,835.85,1.19317604]
[1766672874444,1.19605672,836.91,835.85,1.19317604]
[1766672874645,1.19605672,836.9,835.85,1.19317604]
[1766672874948,1.19605672,836.89,835.85,1.19317604]
[1766672875150,1.19605672,836.88,835.85,1.19317604]
[1766672875348,1.19605672,836.87,835.86,1.19317604]
[1766672875546,0.20795674,836.98,835.89,1.19317604]
[1766672875751,1.1960035,836.97,835.89,1.19317604]
[1766672875950,1.1960035,836.96,835.89,1.19317604]
[1766672876250,1.1960035,836.95,835.9,1.19317604]
[1766672876450,1.1960035,836.94,835.9,1.19317604]
[1766672876651,1.1960035,836.93,835.9,1.19317604]
[1766672876847,1.1960035,836.92,835.9,14.15662567]
[1766672877051,1.1960035,836.91,835.9,14.15662567]
[1766672877252,1.1960035,836.9,835.9,14.15662567]
[1766672877451,1.1960035,836.89,835.9,14.15662567]
[1766672877652,1.1960035,836.88,835.9,14.15662567]
[1766672877853,9.12480829,836.93,835.9,14.15662567]
[1766672878053,1.19600328,836.92,835.9,14.15662567]
[1766672878254,1.19600328,836.91,835.9,14.15662567]
[1766672878449,1.19600328,836.9,835.9,14.15662567]
[1766672878649,1.19600328,836.89,835.9,14.15662567]
[1766672878854,1.19600328,836.88,835.9,14.15662567]
[1766672879050,1.19600328,836.87,835.9,14.15662567]
[1766672879250,9.12480829,836.93,835.9,14.15662567]
[1766672879454,1.19600328,836.92,835.9,14.15662567]
[1766672879655,1.19600328,836.91,835.9,14.15662567]
[1766672879854,9.12480829,836.93,835.9,14.15662567]
[1766672879855,1.19600328,836.9,835.9,14.15662567]
[1766672880055,1.19600328,836.89,835.9,14.15662567]
[1766672880253,1.19600328,836.88,835.91,1.19317604]
[1766672880453,1.19600328,836.87,835.91,1.19317604]
[1766672880756,0.20795674,836.98,835.91,1.19317604]
[1766672881052,1.19600328,836.97,835.91,14.2319905]
[1766672881254,1.19600328,836.96,835.91,14.2319905]
[1766672881456,1.19600328,836.95,835.91,14.2319905]
[1766672881656,1.19600328,836.94,835.91,14.2319905]
[1766672881854,1.19600328,836.93,835.91,14.2319905]
[1766672882057,1.19600328,836.92,835.91,14.2319905]
[1766672882253,1.19600328,836.91,835.91,14.2319905]
[1766672882452,0.20795674,836.98,835.91,14.2319905]
[1766672882453,1.19600328,836.9,835.91,14.2319905]
[1766672882655,1.19600328,836.89,835.91,14.2319905]
[1766672882859,1.19600328,836.88,835.91,14.2319905]
[1766672883055,1.19600328,836.87,835.91,14.2319905]
[1766672883255,1.19600328,836.86,835.92,1.19317604]
[1766672883455,0.20795674,836.98,835.92,1.19317604]
[1766672883663,1.19600318,836.97,835.92,1.19317604]
[1766672883857,1.19600318,836.96,835.92,1.19317604]
[1766672884055,1.19600318,836.95,835.92,1.19317604]
[1766672884258,1.19600318,836.94,835.92,1.19317604]
[1766672884461,1.19600318,836.93,835.92,1.19317604]
[1766672884661,1.19600318,836.92,835.92,1.19317604]
[1766672884960,0.20795674,836.98,835.92,1.19317604]
[1766672884961,1.19600318,836.91,835.92,1.19317604]
[1766672885158,1.19600318,836.9,835.92,1.19317604]
[1766672885462,1.19600318,836.89,835.92,1.19317604]
[1766672885762,1.19600318,836.88,835.92,1.19317604]
[1766672885961,1.19600318,836.87,835.92,1.19317604]
[1766672886163,1.19600318,836.86,835.92,1.19317604]
[1766672886360,1.19600318,836.85,835.92,1.19317604]
[1766672886560,1.10411343,836.98,835.92,1.19317604]
[1766672886760,1.19600318,836.97,835.92,1.19317604]
[1766672886959,1.19600318,836.96,835.92,1.19317604]
[1766672887158,1.19600318,836.95,835.92,1.19317604]
[1766672887362,1.19600318,836.94,835.92,1.19317604]
[1766672887558,1.19600318,836.93,835.92,1.19317604]
[1766672887760,1.19600318,836.92,835.92,1.19317604]
[1766672887958,1.19600318,836.91,835.92,1.19317604]
[1766672888260,1.19600318,836.9,835.92,1.19317604]
[1766672888463,1.19600318,836.89,835.92,1.19317604]
[1766672888660,1.19600318,836.88,835.92,1.19317604]
[1766672888861,10.21851553,836.87,835.92,1.19317604]
[1766672889160,1.19600318,836.86,835.92,1.19317604]
[1766672892274,1.19600318,836.85,835.92,1.19317604]
[1766672892474,1.10411343,836.98,835.92,1.19317604]
[1766672892672,1.19600332,836.97,835.92,1.19317604]
[1766672892869,1.19600332,836.96,835.92,1.19317604]
[1766672893073,1.19600332,836.95,835.92,1.19317604]
[1766672893272,1.19600332,836.94,835.92,1.19317604]
[1766672893470,1.19600332,836.93,835.92,1.19317604]
[1766672893769,1.19600332,836.92,835.92,1.19317604]
[1766672893974,1.19600332,836.91,835.92,1.19317604]
[1766672894171,1.19600332,836.9,835.92,1.19317604]
[1766672894474,1.19600332,836.89,835.92,1.19317604]
[1766672894671,1.19600332,836.88,835.92,1.19317604]
[1766672894970,1.19600332,836.87,835.92,1.19317604]
[1766672895170,1.19600332,836.86,835.92,1.19317604]
[1766672895372,1.19600332,836.85,835.92,1.19317604]
[1766672895576,8.94640723,836.88,835.92,1.19317604]
[1766672895870,1.19600292,836.87,835.92,1.19317604]
[1766672896072,1.19600292,836.86,835.92,1.19317604]
[1766672896274,1.19600292,836.85,835.92,1.19317604]
[1766672896474,8.94640723,836.88,835.92,1.19317604]
[1766672896678,1.19600292,836.87,835.92,1.19317604]
[1766672896879,1.19600292,836.86,835.92,1.19317604]
[1766672897175,1.19600292,836.85,835.92,1.19317604]
[1766672897478,8.94640723,836.88,835.92,1.19317604]
[1766672897679,1.19600302,836.87,835.92,1.19317604]
[1766672897877,1.19600302,836.86,835.92,1.19317604]
[1766672898075,1.19600302,836.85,835.92,1.19317604]
[1766672898374,1.10411343,836.98,835.92,1.19317604]
[1766672898575,1.19600302,836.97,835.92,1.19317604]
[1766672898875,1.19600302,836.96,835.92,1.19317604]
[1766672899077,1.19600302,836.95,835.92,1.19317604]
[1766672899278,1.19600302,836.94,835.92,1.19317604]
[1766672899476,1.19600302,836.93,835.92,1.19317604]
[1766672899675,1.19600302,836.92,835.92,1.19317604]
[1766672899875,1.19600302,836.91,835.92,1.19317604]
[1766672900178,1.19600302,836.9,835.92,1.19317604]
[1766672900375,1.19600302,836.89,835.92,1.19317604]
[1766672900574,1.19600302,836.88,835.92,1.19317604]
[1766672900775,1.19600302,836.87,835.92,1.19317604]
[1766672900975,1.19600302,836.86,835.92,1.19317604]
[1766672901175,1.19600302,836.85,835.92,1.19317604]
[1766672901380,0.20795674,836.98,835.92,1.19317604]
[1766672901676,1.19600302,836.97,835.92,1.19317604]
[1766672901875,1.19600302,836.96,835.92,1.19317604]
[1766672902075,1.19600302,836.95,835.92,1.19317604]
[1766672902276,1.19600302,836.94,835.92,1.19317604]